{"text_format":"1","workbook":"xlsx","n_sheets":16,"sheets":["INTRO","INDEX","Codes","Populatie","Context","Internationaal","Nomenclatuur","Zorgverleners","Voorschrijvers","GeslachtLeeftijd","HospiAmbu","SociaalStatuut","Trends","Geografisch","Aanvullingen","BESLUIT"],"not_rendered":{"charts":0,"images":21,"macros":1,"external_links":0,"defined_names":1,"comments":0,"pivot_tables":0},"unopened":[],"bounds":{"document_bytes":16777216,"sheet_cells":100000,"rows_first":2000,"rows_last":500,"rows_between":2000,"halvings":0,"cell_chars":16384,"cell_head_chars":4096},"cells_cut":0,"cells_raw":0,"read":"whole","date_system":"1900"}

{"sheet":"INTRO","index":0,"n_rows":17,"n_cols":3,"rows_kept":17,"cut":false,"hidden":false,"merged":[[14,1,14,8],[1,1,1,8],[13,1,13,8],[6,1,6,8],[7,1,7,8],[11,1,11,3],[11,4,11,8],[9,2,9,4],[9,5,9,7],[2,1,2,8]]}
[]
[null,"MEDISCHE PRAKTIJKVARIATIES"]
[null,"HULPMIDDEL BIJ DE INTERPRETATIE VAN DE ANALYSES"]
[]
[]
[]
[null,"GELIEVE HIERONDER DE TITEL TE VERMELDEN VAN DE ANALYSE DIE U INTERPRETEERT"]
[]
[]
[null,null,"PERIODE OF JAAR VAN DE ANALYSE :"]
[]
[null,"UW NAAM :"]
[]
[null,"LEES DIT EERST ALVORENS TE BEGINNEN :\nDeze tool is bedoeld om u te helpen bij het formuleren van antwoorden voor de validatie en interpretatie \nvan een analyse praktijkvariaties in de gezondheidszorg.\nHet staat u vrij alles te beantwoorden of enkel de delen in te vullen die u relevant vindt.\nHiervoor kunt u door de pagina's bladeren gebruik makend van de snelkoppelingen \nnaar de verschillende hoofdstukken van de analyse die worden voorgesteld op het tabblad INDEX.\nZorg ervoor dat u het document niet vergeet op te slaan als u klaar bent. \nU kunt dan het bestand samen met elke bijlage die u nuttig acht sturen naar volgend emailadres :"]
[null,"appropriatecare@riziv-inami.fgov.be"]
[]
[null,{"$f":"TODAY()","v":"2019-11-04"}]

{"sheet":"INDEX","index":1,"n_rows":33,"n_cols":7,"rows_kept":33,"cut":false,"hidden":false,"merged":[[1,1,1,8],[9,6,9,7],[13,6,13,7],[23,6,23,7],[6,2,6,8],[2,1,2,8],[3,1,3,8]]}
[]
[null,"INDEX"]
[null,"KIES HIERONDER HET HOOFDSTUK VAN DE ANALYSE DAT U WILT BECOMMENTARIEREN"]
[null,"Het is niet verplicht om alle onderstaande hoofdstukken volledig te beantwoorden.\nU kunt de volgorde van de hoofdstukken volgen of u kunt alleen de hoofdstukken in de onderstaande lijst selecteren die u het meest relevant vindt of waarvoor u commentaar wenst toe te voegen."]
[]
[]
[null,null,"Een groen kruisje zal verschijnen voor de hoofdstukken waar u antwoorden hebt toegevoegd."]
[]
[null,"X"]
[null,null,null,null,null,null,"VALIDATIE"]
[null,"X"]
[]
[null,"X"]
[null,null,null,null,null,null,"CONTEXT"]
[null,"X"]
[]
[null,"X"]
[]
[null,"X"]
[]
[null,"X"]
[]
[null,"X"]
[null,null,null,null,null,null,"INTERPRETATIE"]
[null,"X"]
[]
[null,"X"]
[]
[null,"X"]
[]
[null,"X"]
[]
[null,"X"]

{"sheet":"Codes","index":2,"n_rows":22,"n_cols":10,"rows_kept":22,"cut":false,"hidden":false,"merged":[[1,1,1,8],[3,1,3,8],[7,1,7,8],[8,1,8,2],[8,3,8,8],[6,2,6,7],[21,1,21,2],[21,3,21,8],[18,1,18,2],[18,3,18,8],[19,1,19,2],[19,3,19,8],[20,1,20,2],[20,3,20,8],[11,3,11,8],[10,3,10,8],[9,3,9,8],[13,1,13,2],[12,1,12,2],[11,1,11,2],[10,1,10,2],[9,1,9,2],[13,3,13,8],[12,3,12,8],[15,1,15,8],[16,1,16,2],[16,3,16,8],[17,1,17,2],[17,3,17,8]]}
[]
[null,"KEUZE VAN DE NOMENCLATUURCODES"]
[]
[null,"Bent u akkoord met de gekozen nomenclatuurcodes  ?\n- Zie pagina 4 van het rapport -"]
[]
[null,null,null,null,"JA",null,"NEEN",0]
[null,null,"Bedankt voor uw antwoord!"]
[null,"Zijn er volgens u niet relevante nomenclatuurcodes gekozen? \nZo ja, welke en waarom?"]
[null,"NIET RELEVANTE CODES",null,"VERKLARING"]
[]
[]
[]
[]
[null,null,null,null,null,null,null,null,null,{"$f":"COUNTA(B10:C14)","v":0}]
[]
[null,"Ontbreken er volgens u relevante codes in deze analyse? \nZo ja, welke en waarom?"]
[null,"ONTBREKENDE CODES",null,"VERKLARING"]
[]
[]
[]
[]
[null,null,null,null,null,null,null,null,null,{"$f":"COUNTA(B18:C22)","v":0}]

{"sheet":"Populatie","index":3,"n_rows":25,"n_cols":9,"rows_kept":25,"cut":false,"hidden":false,"merged":[[24,1,24,8],[25,1,25,8],[1,1,1,8],[3,1,3,8],[6,2,6,7],[8,1,8,8],[17,1,17,8],[21,4,21,6],[10,4,10,7],[12,1,12,2],[14,1,14,2],[19,4,19,6],[20,4,20,6]]}
[]
[null,"POPULATIESELECTIE"]
[]
[null,"Vindt u de geselecteerde populatie (leeftijd, geslacht…) geschikt voor de analyse?\n- ZIe pagina 7 van het rapport -"]
[]
[null,null,null,null,"JA",null,"NEEN",0]
[null,null,"Bedankt voor uw antwoord !"]
[]
[null,"Welke leeftijdsselectie zou u voorstellen ?"]
[]
[null,null,null,false,"Geen leeftijdsselectie"]
[]
[null,"Begin van de selectie (jaren)",null,null,null,null,null,null,0]
[]
[null,"Einde van de selectie (jaren)",null,null,null,null,null,null,100]
[]
[]
[null,"Welke selectie volgens geslacht zou u voorstellen ?"]
[]
[null,null,null,false,"Geen"]
[null,null,null,false,"Vrouwen"]
[null,null,null,false,"Mannen"]
[null,null,null,true]
[]
[null,"Eventuele andere opmerkingen"]

{"sheet":"Context","index":4,"n_rows":27,"n_cols":13,"rows_kept":27,"cut":false,"hidden":false,"merged":[[19,1,19,3],[20,1,20,3],[1,1,1,3],[3,1,3,3]]}
[]
[null,"ALGEMENE CONTEXT"]
[]
[null,"Welke zijn de aanbevolen indicaties voor deze medische praktijk ? "]
[]
[null,"INDICATIES","BRON","OPMERKINGEN"]
[]
[null,null," ↪ Graag verduidelijken :"]
[]
[null,null," ↪ Graag verduidelijken :"]
[]
[null,null," ↪ Graag verduidelijken :"]
[]
[null,null," ↪ Graag verduidelijken :"]
[]
[null,null," ↪ Graag verduidelijken :"]
[null,null,null,null,null,{"$f":"COUNTA(B7:D7)+COUNTA(B9:D9)+COUNTA(B11:D11)+COUNTA(B13:D13)+COUNTA(B15:D15)+COUNTA(B17:D17)","v":0}]
[null,null," ↪ Graag verduidelijken :"]
[]
[null,"Eventuele andere opmerkingen"]
[" "]
[]
[null,null,null,null,null,null,null,null,null,null,null,"Sélectionnez…",0]
[null,null,null,null,null,null,null,null,null,null,null,"Beroepservaring",1]
[null,null,null,null,null,null,null,null,null,null,null,"Professionele aanbevelingen",2]
[null,null,null,null,null,null,null,null,null,null,null,"Wetenschappelijke literatuur",3]
[null,null,null,null,null,null,null,null,null,null,null,"Andere",4]

{"sheet":"Internationaal","index":5,"n_rows":8,"n_cols":9,"rows_kept":8,"cut":false,"hidden":false,"merged":[[10,1,10,13],[11,1,11,13],[12,1,12,13],[6,3,6,8],[1,1,1,13],[3,1,3,13],[7,1,7,13],[8,1,8,13],[9,1,9,13]]}
[]
[null,"INTERNATIONALE VERGELIJKING"]
[]
[null,"Beschikt u over internationale statistieken voor deze medische praktijk ?"]
[]
[null,null,null,null,null,"JA",null,"NEEN",0]
[null,null,null,"Bedankt voor uw antwoord!"]
[null,"Zou u ons de bron/link internet kunnen doorgeven voor deze statistieken\n(Graag één per lijn, indien mogelijk via een internet link)"]

{"sheet":"Nomenclatuur","index":6,"n_rows":23,"n_cols":18,"rows_kept":23,"cut":false,"hidden":false,"merged":[[1,1,1,12],[3,1,3,12],[7,1,7,12],[10,1,10,12],[11,1,11,12],[8,2,8,10]]}
[]
[null,"VOLUME AANGEREKENDE PRESTATIES VAN DE NOMENCLATUURCODES"]
[]
[null,"Bemerkt u een significante verschuiving tussen de aangerekende nomenclatuurcodes \ntijdens de laatste 10 jaren ?\n- Zie pagina 9 van het rapport -"]
[]
[null,null,null,null,"JA",null,"NEEN",0]
[]
[null,{"$f":"IF(H6=1,\"Had u deze afwezigheid van variatie verwacht ?\nOf had u eerder wel een variatie verwacht?\",IF(H6=2,\"Wat zou de verklaring kunnen zijn voor deze variaties ?\n(meerdere keuzes mogelijk hieronder)\",\"\"))","v":""}]
[]
[]
[null,"Opmerkingen"]
[]
[]
[]
[]
[]
[null,null,null,null,null,null,null,null,null,null,null,null,null,null,null,null,null,"In gebruikname van één of meerdere nieuwe nomenclatuurcodes"]
[null,null,null,null,null,null,null,null,null,null,null,null,null,null,null,null,null,"Schrapping van één of meerdere nomenclatuurcodes"]
[null,null,null,null,null,null,null,null,null,null,null,null,null,null,null,null,null,"Verandering van de regelgeving"]
[null,null,null,null,null,null,null,null,null,null,null,null,null,null,null,null,null,"Verandering van gebruikte technieken"]
[null,null,null,null,null,null,null,null,null,null,null,null,null,null,null,null,null,"Nieuwe aanbevelingen"]
[null,null,null,null,null,null,null,null,null,null,null,null,null,null,null,null,null,"Geen verklaring"]
[null,null,null,null,null,null,null,null,null,null,null,null,null,null,null,null,null,"Andere…"]

{"sheet":"Zorgverleners","index":7,"n_rows":15,"n_cols":12,"rows_kept":15,"cut":false,"hidden":false,"merged":[[1,1,1,9],[4,1,4,3],[4,5,4,9],[8,1,8,9],[9,1,9,9],[3,1,3,3],[3,5,3,9],[5,1,5,3],[5,5,5,9],[6,1,6,3],[6,5,6,9]]}
[]
[null,"SPECIALISME ZORGVERLENERS\n- Zie pagina 10 van het rapport -"]
[]
[null,"GEGEVENS",null,null,"Volgens de verwachting?","Waarom?"]
[null,"Belangrijkste groep zorgverleners"]
[null,"Verdeling van de zorgverleners\n(% Zorgverleners)"]
[null,"Verdeling van de volumes van de verstrekkingen\n(% Prestaties)",null,null,null,null,null,null,null,null,null,{"$f":"COUNTA(E5:J7)","v":0}]
[]
[null,"Eventuele andere opmerkingen"]
[]
[]
[]
[null,"Ja"]
[null,"Nee"]
[null,"Niet van toepassing"]

{"sheet":"Voorschrijvers","index":8,"n_rows":12,"n_cols":15,"rows_kept":12,"cut":false,"hidden":false,"merged":[[8,1,8,9],[9,1,9,9],[1,1,1,9],[3,1,3,3],[3,5,3,9],[5,1,5,3],[5,5,5,9],[6,1,6,3],[6,5,6,9],[4,1,4,3],[4,5,4,9]]}
[]
[null,"SPECIALISME VOORSCHRIJVERS\n- Zie pagina 11 van het rapport -"]
[]
[null,"GEGEVENS",null,null,"Volgens de verwachting?","Waarom?"]
[null,"Belangrijkste groep voorschrijvers"]
[null,"Verdeling van de voorschrijvers\n(%  Voorschrijvers)"]
[null,"Verdeling van de volumes \nvan de voorschriften\n(% Voorschriften)",null,null,null,null,null,null,null,null,{"$f":"COUNTA(E5:J7)","v":0},{"$f":"COUNTA(E5:J7)","v":0}]
[]
[null,"Eventuele andere opmerkingen",null,null,null,null,null,null,null,null,null,null,null,null,"Pas d'explication"]
[]
[]
[null,{"$f":"COUNTA(B10,#REF!,#REF!)","v":2}]

{"sheet":"GeslachtLeeftijd","index":9,"n_rows":18,"n_cols":12,"rows_kept":18,"cut":false,"hidden":false,"merged":[[1,1,1,9],[3,1,3,3],[3,5,3,9],[4,1,4,3],[4,5,4,9],[17,1,17,9],[18,1,18,9],[5,1,5,3],[5,5,5,9],[14,1,14,9],[15,1,15,9],[8,1,8,3],[8,5,8,9],[10,1,10,9],[6,1,6,3],[6,5,6,9],[7,1,7,3],[7,5,7,9],[13,2,13,7]]}
[null,{"$f":"COUNTA(#REF!,#REF!,#REF!)","v":3}]
[null,"GESLACHT EN LEEFTIJDSCATEGORIE\n- Zie pagina 12 tem 15 van het rapport -"]
[]
[null,"GEGEVENS",null,null,"Volgens de verwachting ?","Waarom ?"]
[null,"Mediaan leeftijd"]
[null,"Variatie volgens leeftijd\n(voor de vrouwen))"]
[null,"Variatie volgens de leeftijd\n(voor de mannen)"]
[null,"Variatie volgens geslacht\n(per provincie)"]
[null,"Sex Ratio",null,null,null,null,null,null,null,null,null,{"$f":"COUNTA(E5:J9)","v":0}]
[]
[null,"Kent u klinische richtlijnen of een reglementering in verband met leeftijd en indicatie\nvoor deze medische praktijk ?"]
[]
[null,null,null,null,"JA",null,"NEEN",0]
[null,null,"Bedankt voor uw antwoord !"]
[null,"Graag de referentie hieronder vermelden :"]
[]
[null,{"$f":"COUNTA(B16,#REF!,#REF!)","v":2}]
[null,"Eventuele andere opmerkingen"]

{"sheet":"HospiAmbu","index":10,"n_rows":9,"n_cols":12,"rows_kept":9,"cut":false,"hidden":false,"merged":[[8,1,8,9],[9,1,9,9],[6,1,6,3],[6,5,6,9],[1,1,1,9],[3,1,3,3],[3,5,3,9],[4,1,4,3],[4,5,4,9],[5,1,5,3],[5,5,5,9]]}
[null,{"$f":"COUNTA(#REF!,#REF!,#REF!)","v":3}]
[null,"GEHOSPITALISEERDE VERSUS AMBULANTE PRESTATIES\n- Zie pagina 16 en 17 van het rapport -"]
[]
[null,"GEGEVENS",null,null,"Volgens de verwachting ?","Waarom ?"]
[null,"Percentage ambulant"]
[null,"Variaties tussen de regio's"]
[null,"Evolutie van het percentage ambulant",null,null,null,null,null,null,null,null,null,{"$f":"COUNTA(E5:J7)","v":0}]
[]
[null,"Eventuele andere opmerkingen"]

{"sheet":"SociaalStatuut","index":11,"n_rows":9,"n_cols":12,"rows_kept":9,"cut":false,"hidden":false,"merged":[[6,1,6,3],[6,5,6,9],[8,1,8,9],[9,1,9,9],[1,1,1,9],[3,1,3,3],[3,5,3,9],[4,1,4,3],[4,5,4,9],[5,1,5,3],[5,5,5,9]]}
[null,{"$f":"COUNTA(#REF!,#REF!,#REF!)","v":3}]
[null,"SOCIAAL STATUUT\n- Zie pagina 18 en 19 van het rapport -"]
[]
[null,"GEGEVENS",null,null,"Volgens de verwachting?","Waarom?"]
[null,"Percentage met voorkeurregeling"]
[null,"Ratio\nmet/zonder voorkeurregeling"]
[null,"Variaties tussen de regio's",null,null,null,null,null,null,null,null,null,{"$f":"COUNTA(E5:J7)","v":0}]
[]
[null,"Eventuele andere opmerkingen"]

{"sheet":"Trends","index":12,"n_rows":24,"n_cols":13,"rows_kept":24,"cut":false,"hidden":false,"merged":[[8,12,8,14],[5,4,5,5],[7,11,7,14],[9,12,9,14],[14,12,14,14],[13,12,13,14],[12,12,12,14],[11,12,11,14],[10,12,10,14],[14,3,14,4],[11,3,11,4],[12,3,12,4],[13,3,13,4],[10,3,10,4],[9,3,9,4],[8,3,8,4],[17,3,17,4],[15,3,15,4],[15,5,15,9],[4,4,4,5],[24,1,24,9],[8,1,8,2],[13,1,13,2],[12,1,12,2],[11,1,11,2],[10,1,10,2],[9,1,9,2],[18,1,18,2],[17,1,17,2],[20,5,20,9],[23,1,23,9],[16,1,16,2],[16,3,16,4],[15,1,15,2],[1,1,1,9],[3,1,3,3],[4,1,4,3],[5,1,5,3],[7,5,7,9],[7,3,7,4],[3,4,3,5],[3,6,3,9],[5,6,5,9],[4,6,4,9],[10,5,10,9],[9,5,9,9],[8,5,8,9],[13,5,13,9],[21,1,21,2],[21,3,21,4],[21,5,21,9],[12,5,12,9],[11,5,11,9],[14,1,14,2],[20,1,20,2],[19,1,19,2],[14,5,14,9],[19,5,19,9],[18,5,18,9],[17,5,17,9],[16,5,16,9],[18,3,18,4],[19,3,19,4],[20,3,20,4]]}
[null,{"$f":"COUNTA(#REF!,#REF!,#REF!)","v":3}]
[null,"EVOLUTIE GEBRUIKSSTATISTIEKEN\n- Zie pagina 20 tem 22 van het rapport -"]
[]
[null,"GEGEVENS",null,null,"Volgens de verwachting?",null,"Waarom?"]
[null,"Trends"]
[null,"Variatie tussen de \ngeografische zones",null,null,null,null,null,null,null,null,null,{"$f":"COUNTA(E5:J6)","v":0}]
[]
[null,null,null,"Trendbreuk ?",null,"OPMERKINGEN",null,null,null,null,null,"LEGENDE"]
[null,"West-Vlaanderen",null,null,null,null,null,null,null,null,null,"⊕↗","Versterking van een stijging"]
[null,"Oost-Vlaanderen",null,null,null,null,null,null,null,null,null,"⊖↗","Afzwakking van een stijging"]
[null,"Antwerpen",null,null,null,null,null,null,null,null,null,"↘↗","Inversie van de tendens \n(van - naar +)"]
[null,"Limburg",null,null,null,null,null,null,null,null,null,"↗↘","Inversie van de tendens \n(van + naar -)"]
[null,"Vlaams-Brabant",null,null,null,null,null,null,null,null,null,"⊖↘","Afzwakking van een daling"]
[null,"Waals-Brabant",null,null,null,null,null,null,null,null,null,"⊕↘","Versterking van een daling"]
[null,"Henegouwen",null,null,null,null,null,null,null,null,null,"NA","Niet statistisch significant gewijzigd"]
[null,"Luik"]
[null,"Namen"]
[null,"Luxemburg"]
[null,"VLAANDEREN"]
[null,"BRUSSEL"]
[null,"WALLONIE"]
[null,"TOTAAL",null,null,null,null,null,null,null,null,null,{"$f":"COUNTA(D9:J22)","v":0}]
[]
[null,"Eventuele andere opmerkingen"]

{"sheet":"Geografisch","index":13,"n_rows":7,"n_cols":12,"rows_kept":7,"cut":false,"hidden":false,"merged":[[6,1,6,9],[7,1,7,9],[1,1,1,9],[3,1,3,3],[3,4,3,5],[3,6,3,9],[4,1,4,3],[4,4,4,5],[4,6,4,9]]}
[null,{"$f":"COUNTA(#REF!,#REF!,#REF!)","v":3}]
[null,"GEOGRAFISCHE VARIATIE\n- Zie pagina 23 tem 27 -"]
[]
[null,"GEGEVENS",null,null,"Volgens de verwachting?",null,"Waarom ?"]
[null,"Geografische verdeling",null,null,null,null,null,null,null,null,null,{"$f":"COUNTA(E5:J5)","v":0}]
[]
[null,"Eventuele andere opmerkingen"]

{"sheet":"Aanvullingen","index":14,"n_rows":9,"n_cols":12,"rows_kept":9,"cut":false,"hidden":false,"merged":[[7,1,7,9],[8,1,8,9],[3,1,3,9],[4,1,4,9],[1,1,1,9],[5,1,5,9],[6,1,6,9]]}
[null,{"$f":"COUNTA(#REF!,#REF!,#REF!)","v":3}]
[null,"AANVULLENDE ANALYSE"]
[]
[null,"Zouden bijkomende analyses van dit type nuttig kunnen zijn om de bevindingen beter te begrijpen ? \nWelke ? (graag één per lijn)"]
[]
[]
[]
[]
[null,null,null,null,null,null,null,null,null,null,null,{"$f":"COUNTA(B5:J9)","v":0}]

{"sheet":"BESLUIT","index":15,"n_rows":320,"n_cols":11,"rows_kept":320,"cut":false,"hidden":false,"merged":[[315,0,315,6],[316,0,316,6],[280,0,280,3],[280,4,280,6],[284,2,284,4],[285,0,285,3],[285,4,285,6],[303,0,303,6],[301,0,301,6],[289,0,289,6],[292,1,292,5],[294,0,294,6],[295,2,295,4],[298,0,298,6],[265,0,265,3],[265,4,265,6],[269,2,269,4],[270,0,270,3],[270,4,270,6],[274,2,274,4],[275,0,275,3],[275,4,275,6],[279,2,279,4],[250,0,250,3],[250,4,250,6],[254,2,254,4],[255,0,255,3],[255,4,255,6],[259,2,259,4],[260,0,260,3],[260,4,260,6],[264,2,264,4],[230,0,230,3],[230,4,230,6],[234,2,234,4],[235,0,235,3],[235,4,235,6],[244,2,244,4],[245,0,245,3],[245,4,245,6],[249,2,249,4],[239,2,239,4],[240,0,240,3],[240,4,240,6],[214,2,214,4],[217,0,217,6],[219,2,219,4],[220,4,220,6],[220,0,220,3],[224,2,224,4],[225,0,225,3],[225,4,225,6],[229,2,229,4],[200,0,200,6],[204,0,204,6],[193,2,193,4],[197,2,197,4],[201,2,201,4],[207,1,207,5],[209,0,209,6],[213,0,213,6],[210,2,210,4],[85,1,85,5],[82,2,82,5],[88,0,88,6],[166,0,166,6],[167,0,167,6],[146,0,146,6],[170,0,170,6],[150,0,150,6],[154,0,154,6],[158,0,158,6],[162,0,162,6],[90,0,90,6],[92,0,92,6],[94,0,94,6],[96,0,96,6],[127,1,127,5],[129,0,129,6],[100,0,100,6],[102,1,102,5],[104,0,104,6],[106,0,106,3],[106,4,106,6],[163,2,163,4],[159,2,159,4],[1,0,1,6],[3,0,3,6],[4,0,4,6],[26,1,26,3],[26,4,26,5],[24,1,24,2],[24,3,24,6],[11,1,11,3],[14,1,14,3],[17,1,17,3],[20,1,20,3],[23,1,23,3],[18,1,18,2],[18,3,18,6],[21,1,21,2],[21,3,21,6],[15,1,15,2],[15,3,15,6],[5,4,5,5],[5,0,5,3],[34,1,34,3],[35,1,35,2],[35,3,35,6],[37,1,37,3],[38,1,38,2],[56,2,56,4],[55,1,55,5],[57,2,57,5],[98,0,98,6],[60,1,60,5],[54,0,54,6],[46,3,46,4],[40,1,40,3],[62,2,62,5],[63,1,63,5],[58,1,58,5],[41,3,41,6],[43,0,43,3],[43,4,43,6],[45,3,45,5],[51,0,51,6],[49,3,49,4],[48,3,48,5],[38,3,38,6],[41,1,41,2],[75,1,75,5],[76,2,76,4],[78,1,78,5],[67,2,67,5],[77,2,77,5],[80,1,80,5],[81,2,81,4],[83,1,83,5],[61,2,61,4],[66,2,66,4],[71,2,71,4],[70,1,70,5],[72,2,72,5],[73,1,73,5],[28,1,28,3],[7,0,7,3],[7,4,7,6],[9,1,9,3],[9,4,9,5],[12,1,12,2],[12,3,12,6],[29,1,29,2],[29,3,29,6],[31,1,31,3],[32,1,32,2],[32,3,32,6],[2,10,5,12],[194,8,194,10],[195,8,195,10],[196,8,196,10],[133,0,133,6],[134,2,134,4],[137,0,137,6],[138,2,138,4],[141,0,141,6],[130,2,130,4],[113,2,113,4],[144,1,144,5],[110,1,110,5],[112,0,112,6],[116,0,116,6],[117,2,117,4],[120,0,120,6],[121,2,121,4],[124,0,124,6],[65,1,65,5],[68,1,68,5],[184,2,184,4],[187,0,187,6],[190,1,190,5],[192,0,192,6],[196,0,196,6],[151,2,151,4],[155,2,155,4],[147,2,147,4],[173,1,173,5],[175,0,175,6],[176,2,176,4],[179,0,179,6],[180,2,180,4],[183,0,183,6]]}
[]
["BESLUIT"]
[null,null,null,null,null,null,null,null,null,null,"AANDACHT\nKlik op \"Vernieuwen\" om uw wijzigingen in de conclusie bij te werken en wacht aub…"]
["Hier volgt een samenvatting van aangeleverde elementen voor de interpretatie \nvan de analyse praktijkvariaties over"]
[{"$f":"IF(ISBLANK(INTRO!B8),\"(niet nader bepaald)\",INTRO!B8)","v":"(niet nader bepaald)"}]
["voor de periode  ",null,null,null,{"$f":"IF(ISBLANK(INTRO!F10),\"(niet nader bepaald)\",INTRO!F10)","v":"(niet nader bepaald)"}]
[]
["De gekozen nomenclatuurcodes voor de analyse zijn",null,null,null,{"$f":"IF(Codes!H6=1,\" geschikt.\",IF(AND(Codes!J14=0,Codes!J22>0),\" niet voldoende.\",IF(AND(Codes!J14>0,Codes!J22=0),\" niet geschikt.\",\" niet geschikt en niet voldoende.\")))","v":" niet geschikt en niet voldoende."}]
[]
[null,{"$f":"IF(COUNTA(Codes!B10)=0,\"\",\"De vologende codes zijn niet geschikt : \")","v":""}]
[]
[null,{"$f":"IF(COUNTA(Codes!B10)=0,0,\"* \"&Codes!B10)","v":0}]
[null,{"$f":"IF(COUNTA(Codes!B10)=0,\"\",\"want \")","v":""},null,{"$f":"Codes!D10","v":0}]
[]
[null,{"$f":"IF(COUNTA(Codes!B11)=0,0,\"* \"&Codes!B11)","v":0}]
[null,{"$f":"IF(COUNTA(Codes!B11)=0,\"\",\"want \")","v":""},null,{"$f":"Codes!D11","v":0}]
[]
[null,{"$f":"IF(COUNTA(Codes!B12)=0,0,\"* \"&Codes!B12)","v":0}]
[null,{"$f":"IF(COUNTA(Codes!B12)=0,\"\",\"want \")","v":""},null,{"$f":"Codes!D12","v":0}]
[]
[null,{"$f":"IF(COUNTA(Codes!B13)=0,0,\"* \"&Codes!B13)","v":0}]
[null,{"$f":"IF(COUNTA(Codes!B13)=0,\"\",\"want \")","v":""},null,{"$f":"Codes!D13","v":0}]
[]
[null,{"$f":"IF(COUNTA(Codes!B14)=0,0,\"* \"&Codes!B14)","v":0}]
[null,{"$f":"IF(COUNTA(Codes!B14)=0,\"\",\"want \")","v":""},null,{"$f":"Codes!D14","v":0}]
[]
[null,{"$f":"IF(COUNTA(Codes!B18)=0,\"\",\"De volgende codes ontbreken : \")","v":""}]
[]
[null,{"$f":"IF(COUNTA(Codes!B18)=0,0,\"* \"&Codes!B18)","v":0}]
[null,{"$f":"IF(COUNTA(Codes!B18)=0,\"\",\"want \")","v":""},null,{"$f":"Codes!D18","v":0}]
[]
[null,{"$f":"IF(COUNTA(Codes!B19)=0,0,\"* \"&Codes!B19)","v":0}]
[null,{"$f":"IF(COUNTA(Codes!B19)=0,\"\",\"want \")","v":""},null,{"$f":"Codes!D19","v":0}]
[]
[null,{"$f":"IF(COUNTA(Codes!B20)=0,0,\"* \"&Codes!B20)","v":0}]
[null,{"$f":"IF(COUNTA(Codes!B20)=0,\"\",\"want \")","v":""},null,{"$f":"Codes!D20","v":0}]
[]
[null,{"$f":"IF(COUNTA(Codes!B21)=0,0,\"* \"&Codes!B21)","v":0}]
[null,{"$f":"IF(COUNTA(Codes!B21)=0,\"\",\"want \")","v":""},null,{"$f":"Codes!D21","v":0}]
[]
[null,{"$f":"IF(COUNTA(Codes!B22)=0,0,\"* \"&Codes!B22)","v":0}]
[null,{"$f":"IF(COUNTA(Codes!B22)=0,\"\",\"want \")","v":""},null,{"$f":"Codes!D22","v":0}]
[]
["De uitgevoerde populatieselectie is",null,null,null,{"$f":"IF(Populatie!H6=1,\" geschikt.\",IF(Populatie!H6=2,\" niet geschikt want:\",\"(niet nader bepaald)\"))","v":"(niet nader bepaald)"}]
[]
[null,null,null,{"$f":"IF(Populatie!D11=TRUE, \"* Er zou geen enkele selectie volgens leeftijd moeten gebeuren.\", \"* Deze selectie volgens leeftijd zou beter geschikt zijn : \")","v":"* Deze selectie volgens leeftijd zou beter geschikt zijn : "}]
[null,null,null,{"$f":"IF(Populatie!D11=FALSE,\"Van \"&Populatie!I13&\" tot \"&Populatie!I15&\" jaar.\",\"\")","v":"Van 0 tot 100 jaar."}]
[]
[null,null,null,{"$f":"IF(OR(Populatie!D21=TRUE,Populatie!D22=TRUE), \"*Deze selectie volgens geslacht zou beter geschikt zijn :\", IF(Populatie!D20=TRUE,\"* Er zou beter geen selectie volgens geslacht worden toegepast.\", \"\"))","v":""}]
[null,null,null,{"$f":"IF(Populatie!D21=TRUE,\"Vrouwen\",IF(Populatie!D22=TRUE,\"Mannen\",\"\"))","v":""}]
[]
[{"$f":"IF(Populatie!B26<>0,\"Wat de bevolkingsselectie betreft, moet dit worden opgemerkt :\",\"\")","v":""}]
[{"$f":"Populatie!B26","v":0}]
[]
[{"$f":"IF(Context!F17=0,\"\",\"De belangrijkste erkende indicaties voor de praktijk \"&INTRO!B8&\" zijn :\")","v":""}]
[null,{"$f":"\"- \"&UPPER(Context!B7)","v":"- "}]
[null,"Bron :",{"$f":"IF(Context!C7=0,\"Niet nader bepaald\",Context!C7)","v":"Niet nader bepaald"}]
[null,"Ref :",{"$f":"IF(Context!D8=0,\"Niet nader bepaald\",Context!D8)","v":"Niet nader bepaald"}]
[null,{"$f":"\"NB : \"&Context!D7","v":"NB : "}]
[]
[null,{"$f":"\"- \"&UPPER(Context!B9)","v":"- "}]
[null,"Bron :",{"$f":"IF(Context!C9=0,\"Niet nader bepaald\",Context!C9)","v":"Niet nader bepaald"}]
[null,"Ref :",{"$f":"IF(Context!D10=0,\"Niet nader bepaald\",Context!D10)","v":"Niet nader bepaald"}]
[null,{"$f":"\"NB : \"&Context!D9","v":"NB : "}]
[]
[null,{"$f":"\"- \"&UPPER(Context!B11)","v":"- "}]
[null,"Bron :",{"$f":"IF(Context!C11=0,\"Niet nader bepaald\",Context!C11)","v":"Niet nader bepaald"}]
[null,"Ref :",{"$f":"IF(Context!D12=0,\"Niet nader bepaald\",Context!D12)","v":"Niet nader bepaald"}]
[null,{"$f":"\"NB : \"&Context!D11","v":"NB : "}]
[]
[null,{"$f":"\"- \"&UPPER(Context!B13)","v":"- "}]
[null,"Bron :",{"$f":"IF(Context!C13=0,\"Niet nader bepaald\",Context!C13)","v":"Niet nader bepaald"}]
[null,"Ref :",{"$f":"IF(Context!D14=0,\"Niet nader bepaald\",Context!D14)","v":"Niet nader bepaald"}]
[null,{"$f":"\"NB : \"&Context!D13","v":"NB : "}]
[]
[null,{"$f":"\"- \"&UPPER(Context!B15)","v":"- "}]
[null,"Bron :",{"$f":"IF(Context!C15=0,\"Niet nader bepaald\",Context!C15)","v":"Niet nader bepaald"}]
[null,"Ref :",{"$f":"IF(Context!D16=0,\"Niet nader bepaald\",Context!D16)","v":"Niet nader bepaald"}]
[null,{"$f":"\"NB : \"&Context!D15","v":"NB : "}]
[]
[null,{"$f":"\"- \"&UPPER(Context!B17)","v":"- "}]
[null,"Bron :",{"$f":"IF(Context!C17=0,\"Niet nader bepaald\",Context!C17)","v":"Niet nader bepaald"}]
[null,"Ref :",{"$f":"IF(Context!D18=0,\"Niet nader bepaald\",Context!D18)","v":"Niet nader bepaald"}]
[null,{"$f":"\"NB : \"&Context!D17","v":"NB : "}]
[]
[null,{"$f":"IF(Context!B21=0,\"\",\"In het kader van de context van \"&INTRO!B8&\", is het interessant om op te merken :\")","v":""}]
[{"$f":"IF(ISBLANK(Context!B21),0,Context!B21)","v":0}]
[]
[{"$f":"IF(Internationaal!I6=2,\"Internationale statistische gegevens over de praktijk \"&INTRO!B8&\" zijn beschikbaar :\",\"Er zijn geen internationale statistische gegevens bekend over de praktijk \"&INTRO!B8&\".\")","v":"Er zijn geen internationale statistische gegevens bekend over de praktijk ."}]
[]
[{"$f":"IF(ISBLANK(Internationaal!B9),\"(Bron niet gespecificeerd)\",\"* \"&Internationaal!B9)","v":"(Bron niet gespecificeerd)"}]
[]
[{"$f":"\"* \"&Internationaal!B10","v":"* "}]
[]
[{"$f":"\"* \"&Internationaal!B11","v":"* "}]
[]
[{"$f":"\"* \"&Internationaal!B12","v":"* "}]
[]
[{"$f":"\"* \"&Internationaal!B13","v":"* "}]
[]
["ANALYSE VAN DE GEGEVENS"]
[]
[null,"VARIATIE IN DE VOLUMES VAN DE GEPRESTEERDE CODES"]
[]
[{"$f":"IF(Nomenclatuur!H6=2,\"We zien een significante variatie in de verdeling van de volumes van gepresteerde codes tijdens de laatste 10 jaren.\",\"We zien geen significante variatie in de verdeling van de volumes van gepresteerde codes tijdens de laatste 10 jaren.\")","v":"We zien geen significante variatie in de verdeling van de volumes van gepresteerde codes tijdens de laatste 10 jaren."}]
[]
["Deze variaties zouden kunnen verklaard worden door :",null,null,null,{"$f":"IF(Nomenclatuur!C9=\"Andere…\",IF(Nomenclatuur!B12=0,\"(niet nader bepaald)\",\"\"),Nomenclatuur!C9)","v":0}]
[]
[{"$f":"Nomenclatuur!B12","v":0}]
[]
[null,"SPECIALISME ZORGVERLENERS"]
[]
[{"$f":"IF(Zorgverleners!E5=0,\"BELANGRIJKSTE SPECIALISME VAN DE ZORGVERLENERS\",\"Het BELANGRIJKSTE SPECIALISME VAN DE ZORGVERLENERS voor de praktijk \"&INTRO!B8)","v":"BELANGRIJKSTE SPECIALISME VAN DE ZORGVERLENERS"}]
[null,null,{"$f":"IF(Zorgverleners!E5=\"ja\",\"is conform de verwachtingen.\",IF(Zorgverleners!E5=\"nee\",\"is niet conform de verwachtingen.\",IF(Zorgverleners!E5=\"niet van toepassing\",\"is in dit geval niet te beoordelen.\",\"\")))","v":""}]
[{"$f":"Zorgverleners!F5","v":0}]
[]
[{"$f":"IF(Zorgverleners!E6=0,\"VERDELING VAN DE ZORGVERLENERS\",\"De VERDELING VAN DE ZORGVERLENERS per specialisme die deze praktijk aanrekenen \")","v":"VERDELING VAN DE ZORGVERLENERS"}]
[null,null,{"$f":"IF(Zorgverleners!E6=\"ja\",\"is conform de verwachtingen.\",IF(Zorgverleners!E6=\"nee\",\"is niet conform de verwachtingen.\",IF(Zorgverleners!E6=\"niet van toepassing\",\"is in dit geval niet te beoordelen.\",\"\")))","v":""}]
[{"$f":"Zorgverleners!F6","v":0}]
[]
[{"$f":"IF(Zorgverleners!E7=0,\"VERDELING VAN DE VOLUMES VAN DE AANGEREKENDE PRESTATIES\",\"De VERDELING VAN DE VOLUMES VAN DE AANGEREKENDE PRESTATIES per specialisme voor deze praktijk\")","v":"VERDELING VAN DE VOLUMES VAN DE AANGEREKENDE PRESTATIES"}]
[null,null,{"$f":"IF(Zorgverleners!E7=\"ja\",\"is conform de verwachtingen.\",IF(Zorgverleners!E7=\"nee\",\"is niet conform de verwachtingen.\",IF(Zorgverleners!E7=\"niet van toepassing\",\"is in dit geval niet te beoordelen.\",\"\")))","v":""}]
[{"$f":"Zorgverleners!F7","v":0}]
[]
["Wat betreft het specialisme van de zorgverleners valt op te merken :"]
[{"$f":"Zorgverleners!B10","v":0}]
[]
[null,"SPECIALISME VOORSCHRIJVERS"]
[]
[{"$f":"IF(Voorschrijvers!E5=0,\"BELANGRIJKSTE SPECIALISME VAN DE VOORSCHRIJVERS\",\"Het BELANGRIJKSTE SPECIALISME VAN DE VOORSCHRIJVERS voor de praktijk \"&INTRO!B25)","v":"BELANGRIJKSTE SPECIALISME VAN DE VOORSCHRIJVERS"}]
[null,null,{"$f":"IF(Voorschrijvers!E5=\"ja\",\"is conform de verwachtingen.\",IF(Voorschrijvers!E5=\"nee\",\"is niet conform de verwachtingen.\",IF(Voorschrijvers!E5=\"niet van toepassing\",\"is in dit geval niet te beoordelen.\",\"\")))","v":""}]
[{"$f":"Voorschrijvers!F5","v":0}]
[]
[{"$f":"IF(Voorschrijvers!E6=0,\"VERDELING VAN DE VOORSCHRIJVERS\",\"De VERDELING VAN DE VOORSCHRIJVERS per specialisme die deze praktijk aanrekenen\")","v":"VERDELING VAN DE VOORSCHRIJVERS"}]
[null,null,{"$f":"IF(Voorschrijvers!E6=\"ja\",\"is conform de verwachtingen.\",IF(Voorschrijvers!E6=\"nee\",\"is niet conform de verwachtingen.\",IF(Voorschrijvers!E6=\"niet van toepassing\",\"is in dit geval niet te beoordelen.\",\"\")))","v":""}]
[{"$f":"Voorschrijvers!F6","v":0}]
[]
[{"$f":"IF(Voorschrijvers!E7=0,\"VERDELING VAN DE VOLUMES VAN DE VOORSCHRIFTEN\",\"De VERDELING VAN DE VOLUMES VAN DE VOORSCHRIFTEN per specialisme voor deze praktijk\")","v":"VERDELING VAN DE VOLUMES VAN DE VOORSCHRIFTEN"}]
[null,null,{"$f":"IF(Voorschrijvers!E7=\"ja\",\"is conform de verwachtingen.\",IF(Voorschrijvers!E7=\"nee\",\"is niet conform de verwachtingen.\",IF(Voorschrijvers!E7=\"niet van toepassing\",\"is in dit geval niet te beoordelen.\",\"\")))","v":""}]
[{"$f":"Voorschrijvers!F7","v":0}]
[]
["Wat betreft het specialisme van de voorschrijvers valt op te merken :"]
[{"$f":"Voorschrijvers!B10","v":0}]
[]
[null,"GEGEVENS PER GESLACHT EN PER LEEFTIJD"]
[]
[{"$f":"IF(ISBLANK(GeslachtLeeftijd!E5),\"MEDIANE LEEFTIJD\",\"De MEDIANE LEEFTIJD van de verzekerden die de praktijk \"&INTRO!$B$8&\" ondergingen\")","v":"MEDIANE LEEFTIJD"}]
[null,null,{"$f":"IF(GeslachtLeeftijd!E5=\"ja\",\"is conform de verwachtingen.\",IF(GeslachtLeeftijd!E5=\"nee\",\"is niet conform de verwachtingen.\",IF(GeslachtLeeftijd!E5=\"niet van toepassing\",\"is in dit geval niet te beoordelen.\",\"\")))","v":""}]
[{"$f":"GeslachtLeeftijd!F5","v":0}]
[]
[{"$f":"IF(ISBLANK(GeslachtLeeftijd!E6),\"VARIATIE VAN DE PRAKTIJK VOLGENS LEEFTIJD (VROUWEN)\",IF(GeslachtLeeftijd!E6=\"niet van toepassing\",\"De VARIATIE VAN DE PRAKTIJK VOLGENS LEEFTIJD bij de vrouwen\",\"De VARIATIE VAN DE PRAKTIJK VOLGENS LEEFTIJD bij de vrouwen\"))","v":"VARIATIE VAN DE PRAKTIJK VOLGENS LEEFTIJD (VROUWEN)"}]
[null,null,{"$f":"IF(GeslachtLeeftijd!E6=\"ja\",\"is conform de verwachtingen.\",IF(GeslachtLeeftijd!E6=\"nee\",\"is niet conform de verwachtingen.\",IF(GeslachtLeeftijd!E6=\"niet van toepassing\",\"is in dit geval niet te beoordelen.\",\"\")))","v":""}]
[{"$f":"GeslachtLeeftijd!F6","v":0}]
[]
[{"$f":"IF(ISBLANK(GeslachtLeeftijd!E7),\"VARIATIE VAN DE PRAKTIJK VOLGENS LEEFTIJD (MANNEN)\",IF(GeslachtLeeftijd!E7=\"niet van toepassing\",\"De VARIATIE VAN DE PRAKTIJK VOLGENS LEEFTIJD bij de mannen\",\"De VARIATIE VAN DE PRAKTIJK VOLGENS LEEFTIJD bij de mannen\"))","v":"VARIATIE VAN DE PRAKTIJK VOLGENS LEEFTIJD (MANNEN)"}]
[null,null,{"$f":"IF(GeslachtLeeftijd!E7=\"ja\",\"is conform de verwachtingen.\",IF(GeslachtLeeftijd!E7=\"nee\",\"is niet conform de verwachtingen.\",IF(GeslachtLeeftijd!E7=\"niet van toepassing\",\"is in dit geval niet te beoordelen.\",\"\")))","v":""}]
[{"$f":"GeslachtLeeftijd!F7","v":0}]
[]
[{"$f":"IF(ISBLANK(GeslachtLeeftijd!E8),\"VARIATIES VOLGENS GESLACHT (PROVINCIE)\",IF(GeslachtLeeftijd!E8=\"niet van toepassing\",\"De VARIATIES VOLGENS GESLACHT per provincie\",\"De VARIATIES VOLGENS GESLACHT per provincie\"))","v":"VARIATIES VOLGENS GESLACHT (PROVINCIE)"}]
[null,null,{"$f":"IF(GeslachtLeeftijd!E8=\"ja\",\"is conform de verwachtingen.\",IF(GeslachtLeeftijd!E8=\"nee\",\"is niet conform de verwachtingen.\",IF(GeslachtLeeftijd!E8=\"niet van toepassing\",\"is in dit geval niet te beoordelen.\",\"\")))","v":""}]
[{"$f":"GeslachtLeeftijd!F8","v":0}]
[]
[{"$f":"IF(ISBLANK(GeslachtLeeftijd!E9),\"SEX RATIO\",IF(GeslachtLeeftijd!E9=\"niet van toepassing\",\"De SEX RATIO voor de praktijk \"&INTRO!B8,\"De SEX RATIO voor de praktijk \"&INTRO!B8))","v":"SEX RATIO"}]
[null,null,{"$f":"IF(GeslachtLeeftijd!E9=\"ja\",\"is conform de verwachtingen.\",IF(GeslachtLeeftijd!E9=\"nee\",\"is niet conform de verwachtingen.\",IF(GeslachtLeeftijd!E9=\"niet van toepassing\",\"is in dit geval niet te beoordelen.\",\"\")))","v":""}]
[{"$f":"GeslachtLeeftijd!F9","v":0}]
[]
["AANBEVELINGEN EN PROFESSIONELE REGELGEVING IN VERBAND MET DE INDICATIE VOLGENS DE LEEFTIJD"]
[{"$f":"IF(GeslachtLeeftijd!H13=1,\"Geen regelgeving of aanbevelingen gekend over dit onderwerp.\",IF(ISBLANK(GeslachtLeeftijd!B16),\"Er bestaan aanbevelingen en/of regelgeving over dit onderwerp (niet ingevuld)\",\"Hier volgen de aanbevelingen en/of regelgeving die we over dit onderwerp kunnen vermelden :\"))","v":"Er bestaan aanbevelingen en/of regelgeving over dit onderwerp (niet ingevuld)"}]
[{"$f":"GeslachtLeeftijd!B16","v":0}]
[]
["Wat betreft de gegevens volgens geslacht en volgens leeftijd, valt het op te merken dat :"]
[{"$f":"GeslachtLeeftijd!B19","v":0}]
[]
[null,"UITVOERING TIJDENS OPNAME VERSUS AMBULANT"]
[]
[{"$f":"IF(ISBLANK(HospiAmbu!E5),\"PERCENTAGE AMBULANT UITGEVOERDE VERSTREKKINGEN\",IF(HospiAmbu!E5=\"niet van toepassing\",\"Het PERCENTAGE AMBULANT UITGEVOERDE VERSTREKKINGEN\",\"Het PERCENTAGE AMBULANT UITGEVOERDE VERSTREKKINGEN\"))","v":"PERCENTAGE AMBULANT UITGEVOERDE VERSTREKKINGEN"}]
[null,null,{"$f":"IF(HospiAmbu!E5=\"ja\",\"is conform de verwachtingen.\",IF(HospiAmbu!E5=\"nee\",\"is niet conform de verwachtingen.\",IF(HospiAmbu!E5=\"niet van toepassing\",\"is in dit geval niet te beoordelen.\",\"\")))","v":""}]
[{"$f":"HospiAmbu!F5","v":0}]
[]
[{"$f":"IF(ISBLANK(HospiAmbu!E6),\"VARIATIES TUSSEN DE GEWESTEN\",IF(HospiAmbu!E6=\"niet van toepassing\",\"De VARIATIES TUSSEN DE GEWESTEN\",\"De VARIATIES TUSSEN DE GEWESTEN\"))","v":"VARIATIES TUSSEN DE GEWESTEN"}]
[null,null,{"$f":"IF(HospiAmbu!E6=\"ja\",\"is conform de verwachtingen.\",IF(HospiAmbu!E6=\"nee\",\"is niet conform de verwachtingen.\",IF(HospiAmbu!E6=\"niet van toepassing\",\"is in dit geval niet te beoordelen.\",\"\")))","v":""}]
[{"$f":"HospiAmbu!F6","v":0}]
[]
[{"$f":"IF(ISBLANK(HospiAmbu!E7),\"EVOLUTIE VAN HET AANDEEL AMBULANTE VERSTREKKINGEN\",\"De EVOLUTIE VAN HET AANDEEL AMBULANTE VERSTREKKINGEN\")","v":"EVOLUTIE VAN HET AANDEEL AMBULANTE VERSTREKKINGEN"}]
[null,null,{"$f":"IF(HospiAmbu!E7=\"ja\",\"is conform de verwachtingen.\",IF(HospiAmbu!E7=\"nee\",\"is niet conform de verwachtingen.\",IF(HospiAmbu!E7=\"niet van toepassing\",\"is in dit geval niet te beoordelen.\",\"\")))","v":""}]
[{"$f":"HospiAmbu!F7","v":0}]
[]
["Wat betreft het aandeel ambulant/gehospitaliseerd valt op te merken dat"]
[{"$f":"HospiAmbu!B10","v":0}]
[]
[null,"TERUGBETALINGSREGELING (SOCIAAL STATUUT)"]
[]
[{"$f":"IF(ISBLANK(SociaalStatuut!E5),\"PERCENTAGE VERZEKERDEN MET VOORKEURSREGELING\",IF(SociaalStatuut!E5=\"niet van toepassing\",\"Het PERCENTAGE VERZEKERDEN MET VOORKEURSREGELING\",\"Het PERCENTAGE VERZEKERDEN MET VOORKEURSREGELING\"))","v":"PERCENTAGE VERZEKERDEN MET VOORKEURSREGELING"}]
[null,null,{"$f":"IF(SociaalStatuut!E5=\"ja\",\"is conform de verwachtingen.\",IF(SociaalStatuut!E5=\"nee\",\"is niet conform de verwachtingen.\",IF(SociaalStatuut!E5=\"niet van toepassing\",\"is in dit geval niet te beoordelen.\",\"\")))","v":""}]
[{"$f":"SociaalStatuut!F5","v":0}]
[]
[{"$f":"IF(ISBLANK(SociaalStatuut!E6),\"RATIO MET VOORKEURSREGELING/ZONDER VOORKEURSREGELING\",IF(SociaalStatuut!E6=\"niet van toepassing\",\"De RATIO MET VOORKEURSREGELING/ZONDER VOORKEURSREGELING\",\"De RATIO MET VOORKEURSREGELING/ZONDER VOORKEURSREGELING\"))","v":"RATIO MET VOORKEURSREGELING/ZONDER VOORKEURSREGELING"}]
[null,null,{"$f":"IF(SociaalStatuut!E6=\"ja\",\"is conform de verwachtingen.\",IF(SociaalStatuut!E6=\"nee\",\"is niet conform de verwachtingen.\",IF(SociaalStatuut!E6=\"niet van toepassing\",\"is in dit geval niet te beoordelen.\",\"\")))","v":""}]
[{"$f":"SociaalStatuut!F6","v":0}]
[]
[{"$f":"IF(ISBLANK(SociaalStatuut!E7),\"VARIATIES VOLGENS DE GEWESTEN\",IF(SociaalStatuut!E7=\"niet van toepassing\",\"De VARIATIES VOLGENS DE GEWESTEN\",\"De VARIATIES VOLGENS DE GEWESTEN\"))","v":"VARIATIES VOLGENS DE GEWESTEN"}]
[null,null,{"$f":"IF(SociaalStatuut!E7=\"ja\",\"is conform de verwachtingen.\",IF(SociaalStatuut!E7=\"nee\",\"is niet conform de verwachtingen.\",IF(SociaalStatuut!E7=\"niet van toepassing\",\"is in dit geval niet te beoordelen.\",\"\")))","v":""}]
[{"$f":"SociaalStatuut!F7","v":0}]
[]
["Wat betreft de terugbetalingsregeling (sociaal statuut) valt het op te merken dat :"]
[{"$f":"SociaalStatuut!B10","v":0}]
[]
[null,"TRENDS"]
[]
[{"$f":"IF(ISBLANK(Trends!E5),\"TENDENSEN IN DE EVOLUTIE\",\"De TENDENSEN IN DE EVOLUTIE\")","v":"TENDENSEN IN DE EVOLUTIE"}]
[null,null,{"$f":"IF(Trends!E5=\"ja\",\"is conform de verwachtingen.\",IF(Trends!E5=\"nee\",\"is niet conform de verwachtingen.\",IF(Trends!E5=\"niet van toepassing\",\"is in dit geval niet te beoordelen.\",\"\")))","v":""}]
[{"$f":"Trends!G5","v":0}]
[]
[{"$f":"IF(ISBLANK(Trends!E6),\"VARIATIES VOLGENS DE GEOGRAFISCHE ZONES\",\"De VARIATIES VOLGENS DE GEOGRAFISCHE ZONES\")","v":"VARIATIES VOLGENS DE GEOGRAFISCHE ZONES"}]
[null,null,{"$f":"IF(Trends!E6=\"ja\",\"is conform de verwachtingen.\",IF(Trends!E6=\"nee\",\"is niet conform de verwachtingen.\",IF(Trends!E6=\"niet van toepassing\",\"is in dit geval niet te beoordelen.\",\"\")))","v":""}]
[{"$f":"Trends!G6","v":0}]
[]
["DE TENDENSEN IN DE EVOLUTIE PER GEOGRAFISCHE ZONE"]
[]
[null,null,"WEST-VLAANDEREN"]
[{"$f":"IF(Trends!D9=\"NA\",\"Het evolutieprofiel van de tendensen in \"&C220&\" est\",\"De tendensen in de evolutie in \"&C220&\" tonen een profiel met \")","v":"De tendensen in de evolutie in WEST-VLAANDEREN tonen een profiel met "},null,null,null,{"$f":"VLOOKUP(Trends!D9,Trends!$L$9:$O$15,2,FALSE)","v":{"$error":"#N/A"}}]
[]
[{"$f":"Trends!F9","v":0}]
[]
[null,null,"OOST VLAANDEREN"]
[{"$f":"IF(Trends!D10=\"NA\",\"Het evolutieprofiel van de tendensen in \"&C225&\" est\",\"De tendensen in de evolutie in \"&C225&\" tonen een profiel met \")","v":"De tendensen in de evolutie in OOST VLAANDEREN tonen een profiel met "},null,null,null,{"$f":"VLOOKUP(Trends!D10,Trends!$L$9:$O$15,2,FALSE)","v":{"$error":"#N/A"}}]
[]
[{"$f":"Trends!F10","v":0}]
[]
[null,null,"ANTWERPEN"]
[{"$f":"IF(Trends!D11=\"NA\",\"Het evolutieprofiel van de tendensen in \"&C230&\" est\",\"De tendensen in de evolutie in \"&C230&\" tonen een profiel met \")","v":"De tendensen in de evolutie in ANTWERPEN tonen een profiel met "},null,null,null,{"$f":"VLOOKUP(Trends!D11,Trends!$L$9:$O$15,2,FALSE)","v":{"$error":"#N/A"}}]
[]
[{"$f":"Trends!F11","v":0}]
[]
[null,null,"LIMBURG"]
[{"$f":"IF(Trends!D12=\"NA\",\"Het evolutieprofiel van de tendensen in \"&C235&\" est\",\"De tendensen in de evolutie in \"&C235&\" tonen een profiel met \")","v":"De tendensen in de evolutie in LIMBURG tonen een profiel met "},null,null,null,{"$f":"VLOOKUP(Trends!D12,Trends!$L$9:$O$15,2,FALSE)","v":{"$error":"#N/A"}}]
[]
[{"$f":"Trends!F12","v":0}]
[]
[null,null,"VLAAMS-BRABANT"]
[{"$f":"IF(Trends!D25=\"NA\",\"Het evolutieprofiel van de tendensen in \"&C240&\" est\",\"De tendensen in de evolutie in \"&C240&\" tonen een profiel met \")","v":"De tendensen in de evolutie in VLAAMS-BRABANT tonen een profiel met "},null,null,null,{"$f":"VLOOKUP(Trends!D13,Trends!$L$9:$O$15,2,FALSE)","v":{"$error":"#N/A"}}]
[]
[{"$f":"Trends!F13","v":0}]
[]
[null,null,"WAALS-BRABANT"]
[{"$f":"IF(Trends!D30=\"NA\",\"Het evolutieprofiel van de tendensen in \"&C245&\" est\",\"De tendensen in de evolutie in \"&C245&\" tonen een profiel met \")","v":"De tendensen in de evolutie in WAALS-BRABANT tonen een profiel met "},null,null,null,{"$f":"VLOOKUP(Trends!D14,Trends!$L$9:$O$15,2,FALSE)","v":{"$error":"#N/A"}}]
[]
[{"$f":"Trends!F14","v":0}]
[]
[null,null,"HENEGOUWEN"]
[{"$f":"IF(Trends!D14=\"NA\",\"Het evolutieprofiel van de tendensen in \"&C250&\" est\",\"De tendensen in de evolutie in \"&C250&\" tonen een profiel met \")","v":"De tendensen in de evolutie in HENEGOUWEN tonen een profiel met "},null,null,null,{"$f":"VLOOKUP(Trends!D15,Trends!$L$9:$O$15,2,FALSE)","v":{"$error":"#N/A"}}]
[]
[{"$f":"Trends!F15","v":0}]
[]
[null,null,"LUIK"]
[{"$f":"IF(Trends!D15=\"NA\",\"Het evolutieprofiel van de tendensen in \"&C255&\" est\",\"De tendensen in de evolutie in \"&C255&\" tonen een profiel met \")","v":"De tendensen in de evolutie in LUIK tonen een profiel met "},null,null,null,{"$f":"VLOOKUP(Trends!D16,Trends!$L$9:$O$15,2,FALSE)","v":{"$error":"#N/A"}}]
[]
[{"$f":"Trends!F16","v":0}]
[]
[null,null,"NAMEN"]
[{"$f":"IF(Trends!D17=\"NA\",\"Het evolutieprofiel van de tendensen in \"&C260&\" est\",\"De tendensen in de evolutie in \"&C260&\" tonen een profiel met \")","v":"De tendensen in de evolutie in NAMEN tonen een profiel met "},null,null,null,{"$f":"VLOOKUP(Trends!D17,Trends!$L$9:$O$15,2,FALSE)","v":{"$error":"#N/A"}}]
[]
[{"$f":"Trends!F17","v":0}]
[]
[null,null,"LUXEMBURG"]
[{"$f":"IF(Trends!D18=\"NA\",\"Het evolutieprofiel van de tendensen in \"&C265&\" est\",\"De tendensen in de evolutie in \"&C265&\" tonen een profiel met \")","v":"De tendensen in de evolutie in LUXEMBURG tonen een profiel met "},null,null,null,{"$f":"VLOOKUP(Trends!D18,Trends!$L$9:$O$15,2,FALSE)","v":{"$error":"#N/A"}}]
[]
[{"$f":"Trends!F18","v":0}]
[]
[null,null,"VLAANDEREN"]
[{"$f":"IF(Trends!D19=\"NA\",\"Het evolutieprofiel van de tendensen in \"&Trends!B19&\" est\",\"De tendensen in de evolutie in \"&Trends!B19&\" tonen een profiel met \")","v":"De tendensen in de evolutie in VLAANDEREN tonen een profiel met "},null,null,null,{"$f":"VLOOKUP(Trends!D19,Trends!$L$9:$O$15,2,FALSE)","v":{"$error":"#N/A"}}]
[]
[{"$f":"Trends!F19","v":0}]
[]
[null,null,"BRUSSEL"]
[{"$f":"IF(Trends!D20=\"NA\",\"Het evolutieprofiel van de tendensen in \"&Trends!B20&\" est\",\"De tendensen in de evolutie in \"&Trends!B20&\" tonen een profiel met \")","v":"De tendensen in de evolutie in BRUSSEL tonen een profiel met "},null,null,null,{"$f":"VLOOKUP(Trends!D20,Trends!$L$9:$O$15,2,FALSE)","v":{"$error":"#N/A"}}]
[]
[{"$f":"Trends!F20","v":0}]
[]
[null,null,"WALLONIE"]
[{"$f":"IF(Trends!D21=\"NA\",\"Het evolutieprofiel van de tendensen in \"&Trends!B21&\" est\",\"De tendensen in de evolutie in \"&Trends!B21&\" tonen een profiel met \")","v":"De tendensen in de evolutie in WALLONIE tonen een profiel met "},null,null,null,{"$f":"VLOOKUP(Trends!D21,Trends!$L$9:$O$15,2,FALSE)","v":{"$error":"#N/A"}}]
[]
[{"$f":"Trends!F21","v":0}]
[]
[null,null,"TOTAAL"]
[{"$f":"IF(Trends!D22=\"NA\",\"Het evolutieprofiel van de gemiddelde tendensen is\",\"De gemiddelde tendensen van de evolutie tonen een profiel met\")","v":"De gemiddelde tendensen van de evolutie tonen een profiel met"},null,null,null,{"$f":"VLOOKUP(Trends!D22,Trends!$L$9:$O$15,2,FALSE)","v":{"$error":"#N/A"}}]
[]
[{"$f":"Trends!F22","v":0}]
[]
["Wat betreft de tendensen valt op te merken dat :"]
[{"$f":"Trends!B25","v":0}]
[]
[null,"GEOGRAFISCHE VARIATIES"]
[]
[{"$f":"IF(ISBLANK(Geografisch!E5),\"GEOGRAFISCHE VERDELING\",\"De GEOGRAFISCHE VERDELING die wordt vastgesteld voor de praktijk \"&INTRO!$B$8)","v":"GEOGRAFISCHE VERDELING"}]
[null,null,{"$f":"IF(Geografisch!E5=\"ja\",\"is conform de verwachtingen.\",IF(Geografisch!E5=\"nee\",\"is niet conform de verwachtingen.\",IF(Geografisch!E5=\"niet van toepassing\",\"is in dit geval niet te beoordelen.\",\"\")))","v":""}]
[{"$f":"Geografisch!G5","v":0}]
[]
["Wat betreft de geografische variaties valt op te merken dat :"]
[{"$f":"Geografisch!B8","v":0}]
[]
["AANVULLENDE ANALYSES"]
[]
[{"$f":"IF(Aanvullingen!L9>1,\"Om de situatie beter te kunnen begrijpen, zou het nuttig kunnen zijn om volgende bijkomende analyses uit te voeren :\",\"Om de situatie beter te kunnen begrijpen, zou het nuttig kunnen zijn om de volgende bijkomende analyse uit te voeren : \")","v":"Om de situatie beter te kunnen begrijpen, zou het nuttig kunnen zijn om de volgende bijkomende analyse uit te voeren : "}]
[]
[{"$f":"\"1. \"&Aanvullingen!B5","v":"1. "}]
[]
[{"$f":"\"2. \"&Aanvullingen!B6","v":"2. "}]
[]
[{"$f":"\"3. \"&Aanvullingen!B7","v":"3. "}]
[]
[{"$f":"\"4. \"&Aanvullingen!B8","v":"4. "}]
[]
[{"$f":"\"5. \"&Aanvullingen!B9","v":"5. "}]
[]
["DIT RAPPORT IS OPGESTELD DOOR"]
[{"$f":"INTRO!E12","v":0}]
[]
[null,null,null,"Datum"]
[null,null,null,"2019-11-04"]